[Event "101st Irish Championship 2022"]
[Site "Dublin"]
[Date "2022.07.05"]
[Round "2.8"]
[White "Doyle, Anthony"]
[Black "Melaugh, Gavin"]
[Result "1/2-1/2"]
[ECO "A04"]
[WhiteElo "2116"]
[BlackElo "2020"]
[Annotator "TA"]
[PlyCount "50"]
[EventDate "2022.07.05"]
[EventType "swiss"]
[EventCountry "IRL"]
[SourceTitle "playchess.com"]
[Source "ChessBase"]
[SourceQuality "1"]
[TimeControl "40/6300+30:1800+30"]

{[%evp 9,50,27,27,27,27,27,25,31,31,25,26,28,33,33,33,31,55,37,29,14,96,91,106,24,39,0,5,0,6,5,8,0,0,0,8,7,10,12,20,7,7,10,35]} 1. Nf3 {[%emt 0:00:07]} f5 {[%emt 0:01:11]} 2. d3 {[%emt 0:00:45]} Nf6 {[%emt 0:00:14]} 3. e4 {[%emt 0:00:07]} fxe4 {[%emt 0:00:18]} 4. dxe4 {[%emt 0:00:07]} Nxe4 {[%emt 0:00:32]} 5. Bd3 {[%emt 0:00:07]} d5 {[%emt 0:01:56]} 6. Bxe4 {[%emt 0:00:07] A04: Unusual lines after 1 Nf3 and King's Indian Attack.} dxe4 {[%emt 0:00:02]} 7. Qxd8+ {[%emt 0:00:08]} Kxd8 {[%emt 0:00:07]} 8. Ng5 {[%emt 0:00:10] [#] Strongly threatening Nf7+. White has an edge.} Ke8 {[%emt 0:00:49] Prevents Nf7.} 9. Nc3 {[%emt 0:01:17]} Bf5 {[%emt 0:03:41]} 10. Be3 {[%emt 0:04:50]} e5 {[%emt 0:04:14]} 11. O-O-O {[%emt 0:00:50]} Nc6 {[%emt 0:07:39]} 12. Ngxe4 {[%emt 0:05:05] [#]} Be7 $146 {[%emt 0:09:05]} ({Predecessor:} 12... Rd8 13. f3 Nd4 14. Rhe1 Be7 15. Bxd4 exd4 16. Nb5 Kf7 17. Nxd4 Bd7 18. f4 a6 {1-0 (69) Eggleston,D (2232)-Redmond,J Liverpool 2006}) 13. Rhe1 {[%emt 0:17:58]} Kf7 {[%emt 0:08:47]} 14. Bc5 {[%emt 0:13:02]} Bxc5 {[%emt 0:27:28]} (14... Bf6 $11) 15. Nxc5 $16 {[%emt 0:00:11] Pair of Knights!} b6 {[%emt 0:00:50] [#]} 16. N5e4 {[%emt 0:08:53] White is more active.} ({Better is} 16. Na6 $1 $16) 16... Rad8 $11 {[%emt 0:09:24]} 17. Ng3 {[%emt 0:06:06]} Bg6 {[%emt 0:07:10] The position is equal.} 18. h4 {[%emt 0:00:28] Threatens to win with h5.} Rxd1+ {[%emt 0:10:36]} 19. Rxd1 {[%emt 0:00:30] Hoping for h5.} Nd4 {[%emt 0:00:13]} 20. Nce4 {[%emt 0:07:26]} Bxe4 {[%emt 0:03:34]} 21. Nxe4 {[%emt 0:00:13]} Rd8 {[%emt 0:02:38] ( -> ...Ne2+)} 22. c3 {[%emt 0:08:09]} Ne2+ {[%emt 0:01:50]} 23. Kc2 {[%emt 0:00:07]} Rxd1 {[%emt 0:00:10]} 24. Kxd1 {[%emt 0:00:10]} Nf4 {[%emt 0:00:13]} 25. g3 {[%emt 0:03:17]} Ne6 {[%emt 0:00:32] Weighted Error Value: White=0.15 (very precise) /Black=0.11 (very precise)} 1/2-1/2

[Event "101st Irish Championship 2022"]
[Site "Dublin"]
[Date "2022.07.05"]
[Round "2.9"]
[White "Kennedy, John"]
[Black "Cafolla, Peter"]
[Result "1/2-1/2"]
[ECO "B07"]
[WhiteElo "2047"]
[BlackElo "1937"]
[Annotator "TA"]
[PlyCount "45"]
[EventDate "2022.07.05"]
[EventType "swiss"]
[EventCountry "IRL"]
[SourceTitle "playchess.com"]
[Source "ChessBase"]
[SourceQuality "1"]
[TimeControl "40/6300+30:1800+30"]

{[%evp 15,45,16,34,0,31,-5,-22,-37,-23,-53,-17,-46,47,52,53,53,57,39,64,54,86,47,92,70,87,81,81,90,94,87,104,77]} 1. Nf3 {[%emt 0:00:01]} Nf6 {[%emt 0:00:59]} 2. g3 {[%emt 0:00:04]} g6 {[%emt 0:00:07]} 3. Bg2 {[%emt 0:00:03]} Bg7 {[%emt 0:00:08]} 4. d4 {[%emt 0:00:04]} O-O {[%emt 0:01:24]} 5. O-O {[%emt 0:00:04]} d6 {[%emt 0:00:34]} 6. a4 {[%emt 0:00:05]} Nbd7 {[%emt 0:03:43]} 7. Nc3 {[%emt 0:00:19]} e5 {[%emt 0:02:10]} 8. e4 {[%emt 0:00:06]} a5 {[%emt 0:05:25]} 9. h3 {[%emt 0:02:23] B07: Pirc Defence: Miscellaneous Systems.} Re8 {[%emt 0:07:30] [#]} 10. Bg5 $146 {[%emt 0:11:52]} ({Predecessor:} 10. Re1 c6 11. Be3 exd4 12. Nxd4 Nc5 13. Bf4 Nh5 14. Bc1 d5 15. g4 dxe4 16. Be3 Nf4 17. Nxc6 Qxd1 18. Rexd1 Nxg2 19. Ne7+ Kh8 20. Kxg2 {½-½ (43) Ibarra Jerez,J (2570)-Golubev,M (2461) Chess.com INT 2022}) 10... h6 {[%emt 0:04:22]} 11. Be3 {[%emt 0:06:46] The position is equal.} exd4 $1 {[%emt 0:04:09]} 12. Nxd4 {[%emt 0:08:32]} Nc5 {[%emt 0:03:01][%cal Rc5e4]} 13. f3 {[%emt 0:00:16]} Bd7 {[%emt 0:07:46]} (13... d5 $1 $15) 14. Qd2 $14 {[%emt 0:01:27]} Kh7 {[%emt 0:00:48]} 15. Rfe1 {[%emt 0:21:05]} c6 {[%emt 0:04:17]} 16. Nde2 {[%emt 0:05:38]} Bf8 {[%emt 0:08:32][%cal Od6d5]} 17. Rad1 {[%emt 0:05:48]} Qb6 {[%emt 0:06:21]} 18. Kh2 {[%emt 0:02:12]} Qb4 {[%emt 0:20:10]} (18... Qxb2 $2 19. Bxc5 dxc5 20. Rb1 $18) 19. Bd4 {[%emt 0:06:51]} Ng8 {[%emt 0:04:22]} 20. b3 {[%emt 0:19:22] White is better.} Ne6 {[%emt 0:03:30]} 21. Bf2 {[%emt 0:03:05] White is more active.} Rad8 {[%emt 0:03:04]} 22. Qc1 {[%emt 0:05:29] [#] Threatens to win with Na2.} Nc5 {[%emt 0:00:50]} 23. Na2 {[%emt 0:05:35] Weighted Error Value: White=0.12 (very precise) /Black=0.14 (very precise)} 1/2-1/2

[Event "101st Irish Championship 2022"]
[Site "Dublin"]
[Date "2022.07.05"]
[Round "2.10"]
[White "Keenan, Cathal"]
[Black "O`Gorman, Alice"]
[Result "1-0"]
[ECO "C24"]
[WhiteElo "1811"]
[BlackElo "2043"]
[Annotator "TA"]
[PlyCount "145"]
[EventDate "2022.07.05"]
[EventType "swiss"]
[EventCountry "IRL"]
[SourceTitle "playchess.com"]
[Source "ChessBase"]
[SourceQuality "1"]
[TimeControl "40/6300+30:1800+30"]

{[%evp 9,145,13,58,47,65,46,58,60,71,16,89,96,83,70,69,61,87,5,2,12,57,38,67,30,32,25,16,24,50,20,29,9,23,19,59,-44,-51,-47,-51,-45,-18,-54,35,17,125,107,121,0,0,0,0,0,33,0,0,0,37,37,37,-108,-108,-108,31,0,0,0,0,0,0,0,168,160,245,230,231,223,229,175,326,178,179,165,201,198,201,201,194,194,194,194,194,191,177,144,558,558,558,558,558,531,11703,29956,6379,6191,29976,29976,29977,29978,29977,29979,29980,29981,29981,29982,29982,29983,29983,29984,29984,29985,29985,29986,29989,29990,29990,29991,29991,29992,29992,29989,29989,29989,29990,29991,29994,29994,29994,29995]} 1. e4 {[%emt 0:00:07]} e5 {[%emt 0:00:09]} 2. Bc4 {[%emt 0:00:19]} Nf6 {[%emt 0:00:18]} 3. d3 {[%emt 0:00:08]} c6 {[%emt 0:01:29]} 4. Nf3 {[%emt 0:00:33]} d5 {[%emt 0:01:45]} 5. Bb3 {[%emt 0:00:13]} Nbd7 {[%emt 0:03:10]} 6. O-O {[%emt 0:02:53] C24: Bishop's Opening: 2...Nf6.} Be7 {[%emt 0:03:33]} 7. exd5 {[%emt 0:06:36]} cxd5 {[%emt 0:11:15]} 8. Re1 {[%emt 0:01:20] White is slightly better.} O-O {[%emt 0:01:58] [#]} 9. Bg5 $146 {[%emt 0:02:15]} (9. Nc3 $16) ({Predecessor:} 9. Nxe5 Nxe5 10. Rxe5 Bd6 11. Re1 Ng4 12. h3 Qh4 13. Be3 Re8 14. Bd4 Be6 15. c3 {0-1 (50) Rabiega,R (2551)-Scheide,H (1971) Berlin 2009}) 9... Qc7 {[%emt 0:09:32]} (9... e4 $11 10. Nd4 Nc5) 10. Nc3 {[%emt 0:23:48]} Bb4 {[%emt 0:05:33]} 11. Bd2 {[%emt 0:08:15]} Bxc3 {[%emt 0:04:04]} 12. Bxc3 {[%emt 0:04:49]} (12. bxc3 Re8 $11) 12... Re8 {[%emt 0:04:14]} 13. d4 {[%emt 0:05:04]} ({Better is} 13. Qe2 $1 $16) 13... e4 $11 {[%emt 0:04:00] And now ...a5 would win.} 14. Ne5 {[%emt 0:00:44]} b5 {[%emt 0:05:32][%cal Ob5b4]} 15. a4 $1 {[%emt 0:08:07]} b4 {[%emt 0:03:11]} 16. Nxd7 {[%emt 0:06:48]} (16. Bxb4 $5 {[%cal Re5f7]} Nxe5 17. dxe5 Rxe5 18. Re3 $14) 16... Bxd7 {[%emt 0:01:25]} 17. Bxb4 {[%emt 0:01:13]} Ng4 {[%emt 0:01:24] Inhibits Re3.} 18. g3 {[%emt 0:00:34]} Nf6 {[%emt 0:17:06]} 19. f3 {[%emt 0:04:12]} Qb6 {[%emt 0:07:29]} 20. Bc5 {[%emt 0:07:49]} Qe6 {[%emt 0:01:42]} 21. a5 {[%emt 0:05:01]} Qh3 {[%emt 0:03:44]} 22. Bd6 {[%emt 0:04:43]} (22. fxe4 $1 $14 Bg4 23. Qd3 dxe4 24. Qf1 (24. Qc4 Qh5 $11)) 22... Qh5 $1 $15 {[%emt 0:04:59]} 23. fxe4 {[%emt 0:12:07] Black must now prevent Qxh5.} (23. g4 Qh3 24. Bg3 Rac8 $11) 23... Bg4 {[%emt 0:00:40]} 24. Qd3 {[%emt 0:01:51] e5 is the strong threat.} dxe4 {[%emt 0:01:35]} 25. Qf1 {[%emt 0:00:58]} e3 {[%emt 0:02:20]} (25... Rad8 $15 26. Bc5 e3) 26. Be5 $36 {[%emt 0:01:03][%mdl 2048] White has some pressure. This bishop pair is nice.} Ne4 {[%emt 0:10:16]} (26... e2 $11 {remains equal.} 27. Qf4 Nd7) 27. Rxe3 $16 {[%emt 0:01:57] Chess con chili.} Nd2 {[%emt 0:00:46] [#]} 28. Qf2 {[%emt 0:00:34]} (28. Qd3 $1 $16 {[%cal Rd3d2]} Nxb3 29. Qxb3) 28... Nxb3 $11 {[%emt 0:01:05]} 29. cxb3 {[%emt 0:00:27]} (29. Rxb3 $2 f6 30. Re1 fxe5 $19) 29... Rac8 {[%emt 0:02:14]} 30. b4 {[%emt 0:01:27]} Bf5 {[%emt 0:00:50]} 31. Qf3 {[%emt 0:01:38]} Bg4 {[%emt 0:00:38]} 32. Qf2 {[%emt 0:00:26]} Bf5 {[%emt 0:01:18]} 33. Rae1 $1 {[%emt 0:01:18]} Rc2 {[%emt 0:00:15]} 34. R3e2 {[%emt 0:00:13]} (34. g4 $1 $14 {is the one way to stay ahead.} Qxg4+ 35. Rg3 Rxf2 36. Rxg4 Bxg4 37. Kxf2) 34... Rxe2 $17 {[%emt 0:00:13]} 35. Qxe2 {[%emt 0:00:07]} (35. Rxe2 $2 {too greedy.} f6 36. Re1 fxe5 37. dxe5 Bh3 $19) 35... Bg4 {[%emt 0:01:35]} ({Black should try} 35... Qxe2 $17 36. Rxe2 f6) 36. Qf2 {[%emt 0:00:17]} Be6 {[%emt 0:00:56]} 37. Qe2 {[%emt 0:01:35]} Bg4 {[%emt 0:00:05]} 38. Qf2 {[%emt 0:00:35]} Be6 {[%emt 0:00:05]} 39. Bd6 {[%emt 0:00:23]} Rd8 $2 {[%emt 0:00:58]} (39... Bd7 $11 {and Black stays safe.}) 40. Bc5 $18 {[%emt 0:00:18]} Bd5 {[%emt 0:01:04]} (40... Bd7 $16 41. Bxa7 Re8 42. Rxe8+ Bxe8) 41. Qe2 {[%emt 0:30:11]} ({Resist} 41. Bxa7 Bc6) 41... Qxe2 {[%emt 0:30:42]} 42. Rxe2 {[%emt 0:00:03][%mdl 4096] Endgame KRB-KRB} a6 {[%emt 0:00:07]} 43. Kf2 {[%emt 0:00:14][%cal Ob4b5] Strongly threatening b5!} g6 $2 {[%emt 0:00:40]} (43... Bc6 {keeps fighting.} 44. Re7 f6) 44. Re5 {[%emt 0:00:24]} (44. b5 $142) 44... Bc4 {[%emt 0:00:29]} 45. g4 {[%emt 0:00:26]} h6 {[%emt 0:00:43]} 46. Ke3 {[%emt 0:00:28]} Kg7 {[%emt 0:00:36]} 47. h4 {[%emt 0:00:32]} Rd7 {[%emt 0:00:00]} 48. Kd2 {[%emt 0:00:00]} f6 {[%emt 0:00:00]} 49. Re8 {[%emt 0:00:00]} h5 {[%emt 0:00:00]} 50. gxh5 {[%emt 0:00:00]} gxh5 {[%emt 0:00:00]} 51. Kc3 {[%emt 0:00:00]} Bb5 {[%emt 0:00:00][%mdl 8192] [#] Loses the game.} (51... Bf1 $16 52. Kd2 Kg6) 52. Rb8 $1 {[%emt 0:00:00]} f5 {[%emt 0:00:00] [#]} 53. Rxb5 {[%emt 0:00:00]} axb5 {[%emt 0:00:00] KR-KB} 54. a6 {[%emt 0:00:00][%cal Ba5a6,Ba6a7][%mdl 32]} Kf6 {[%emt 0:00:00]} 55. a7 {[%emt 0:00:00]} Rd8 {[%emt 0:00:00] [#]} 56. Bd6 $1 {[%emt 0:00:00][%mdl 512]} Ra8 {[%emt 0:00:00]} (56... Rxd6 57. a8=Q) 57. Bb8 {[%emt 0:00:00] White mates.} Ke6 {[%emt 0:00:00]} 58. Kd3 {[%emt 0:00:00]} Kd5 {[%emt 0:00:00]} 59. Ke3 {[%emt 0:00:00]} Kc4 {[%emt 0:00:00]} 60. Kf4 {[%emt 0:00:00]} Kxd4 {[%emt 0:00:00]} 61. Kxf5 {[%emt 0:00:00]} Kc4 {[%emt 0:00:00]} 62. Kg5 {[%emt 0:00:00]} Kxb4 {[%emt 0:00:00]} 63. Kxh5 {[%emt 0:00:00]} Kb3 {[%emt 0:00:00]} 64. Kg5 {[%emt 0:00:00]} Kxb2 {[%emt 0:00:00]} 65. h5 {[%emt 0:00:00]} Ka2 {[%emt 0:00:00]} 66. h6 {[%emt 0:00:00]} b4 {[%emt 0:00:00]} 67. h7 {[%emt 0:00:00]} b3 {[%emt 0:00:00]} 68. h8=Q {[%emt 0:00:00]} b2 {[%emt 0:00:00]} 69. Qh2 {[%emt 0:00:00]} Kb3 {[%emt 0:00:00]} 70. Qg3+ {[%emt 0:00:00]} Ka2 {[%emt 0:00:00]} 71. Qg2 {[%emt 0:00:00]} Ka1 {[%emt 0:00:00]} 72. Qxa8 {[%emt 0:00:00]} b1=Q {[%emt 0:00:00]} 73. Be5+ {[%emt 0:00:00] Weighted Error Value: White=0.20 (precise) /Black=0.45} 1-0

[Event "101st Irish Championship 2022"]
[Site "Dublin"]
[Date "2022.07.05"]
[Round "2.11"]
[White "Mats, Diana"]
[Black "Keogh, Eamon"]
[Result "1-0"]
[ECO "B07"]
[WhiteElo "2028"]
[BlackElo "1931"]
[Annotator "TA"]
[PlyCount "87"]
[EventDate "2022.07.05"]
[EventType "swiss"]
[EventCountry "IRL"]
[SourceTitle "playchess.com"]
[Source "ChessBase"]
[SourceQuality "1"]
[TimeControl "40/6300+30:1800+30"]

{[%evp 9,87,42,62,45,105,102,125,122,131,95,132,154,156,168,173,158,152,147,190,196,289,309,277,197,257,241,301,266,340,270,366,322,336,190,210,216,209,171,231,224,231,240,339,251,237,243,224,196,289,127,136,133,137,130,138,123,154,160,177,119,218,197,225,237,1224,1067,900,258,200,214,192,198,858,850,805,632,462,283,29985,29982]} 1. e4 {[%emt 0:00:08]} d6 {[%emt 0:02:51]} 2. d4 {[%emt 0:01:13]} g6 {[%emt 0:00:11]} 3. Nc3 {[%emt 0:01:19]} Bg7 {[%emt 0:00:12]} 4. Be3 {[%emt 0:01:36]} Nf6 {[%emt 0:00:46]} 5. f3 {[%emt 0:00:59]} Nbd7 {[%emt 0:01:40]} 6. g4 {[%emt 0:01:23][%cal Bg2g4,Bg4g5][%mdl 32] B07: Pirc Defence: Miscellaneous Systems.} b6 {[%emt 0:06:08]} (6... O-O $14) 7. Qd2 $16 {[%emt 0:03:32]} h5 {[%emt 0:04:11]} 8. g5 {[%emt 0:00:59] White is better.} Nh7 {[%emt 0:00:15] [#]} 9. O-O-O $146 {[%emt 0:11:15]} ({Predecessor:} 9. h4 c5 10. Bg2 Bb7 11. Nge2 Nhf8 12. f4 Ne6 13. d5 Nc7 14. O-O O-O 15. Ng3 {0-1 (44) Tavus,H-Callioglu,Y (1580) Antalya 2017}) 9... Bb7 {[%emt 0:09:40]} 10. f4 {[%emt 0:08:39][%cal Bf3f4,Bf4f5][%mdl 32]} a6 {[%emt 0:07:03]} 11. Bg2 {[%emt 0:04:10]} b5 {[%emt 0:00:43]} 12. f5 {[%emt 0:12:05]} Nb6 {[%emt 0:04:09]} 13. b3 {[%emt 0:21:10]} c6 {[%emt 0:18:34]} 14. Nh3 {[%emt 0:13:12]} Nd7 {[%emt 0:14:30]} (14... Qc7 $142 15. Rhf1 b4) 15. fxg6 $18 {[%emt 0:15:37]} fxg6 {[%emt 0:00:04]} 16. Nf4 {[%emt 0:00:02]} Ndf8 {[%emt 0:04:07] Inhibits Ne6.} (16... Nhf8 $142 17. Rhf1 Qc7) 17. Nce2 {[%emt 0:05:33]} a5 {[%emt 0:01:41]} 18. Kb1 {[%emt 0:04:52]} Qc7 {[%emt 0:04:40]} 19. Rhf1 {[%emt 0:01:08]} O-O-O {[%emt 0:01:46]} 20. Bh3+ {[%emt 0:01:30][%cal Bg2h3,Bh3e6,Be6f7,Bf7g6,Bg6f5][%mdl 32]} Kb8 {[%emt 0:00:08]} 21. Ne6 {[%emt 0:00:35]} (21. Nd3 $142) 21... Nxe6 {[%emt 0:00:57]} 22. Bxe6 {[%emt 0:00:01]} Nf8 {[%emt 0:12:35]} 23. Bf7 {[%emt 0:00:03]} Bc8 {[%emt 0:01:10]} (23... e6 $142) 24. Nf4 {[%emt 0:00:46]} Bg4 {[%emt 0:03:11]} 25. Rc1 {[%emt 0:00:38]} (25. Nxg6 Nxg6 26. Bxg6 Bxd1 27. Rxd1 (27. Qxd1 Rdf8 $14) 27... Rdf8 $14) 25... a4 {[%emt 0:10:15]} (25... e6 $142 26. Nxg6 (26. Bxg6 e5 $14) 26... Nxg6) 26. Nxg6 {[%emt 0:00:26]} Nxg6 {[%emt 0:00:25]} 27. Bxg6 {[%emt 0:00:05]} c5 {[%emt 0:01:17]} 28. Rf7 {[%emt 0:02:16]} cxd4 {[%emt 0:01:13]} (28... Rhg8 {might work better.} 29. Bh7 cxd4) 29. Bxd4 {[%emt 0:00:47]} (29. Rxg7 $18 dxe3 30. Qxe3) 29... Bxd4 $16 {[%emt 0:01:04]} 30. Qxd4 {[%emt 0:00:04] And now Bf5 would win.} Rhg8 {[%emt 0:00:53] [#]} 31. Bf5 {[%emt 0:00:34] Threatens to win with g6. White is more active.} (31. Rg7 $2 e5 32. Rxc7 exd4 $19) 31... Rxg5 {[%emt 0:00:26]} 32. bxa4 {[%emt 0:00:54]} bxa4 {[%emt 0:01:39]} 33. h4 $36 {[%emt 0:01:22][%mdl 2048] White is really pushing.} Rgg8 {[%emt 0:00:54] [#]} 34. Qxa4 {[%emt 0:00:09]} ({White should try} 34. Ka1 $1 $18 {Intending Rb1+ and mate.} Bxf5 35. Rxf5) 34... Bxf5 {[%emt 0:00:52]} (34... Rgf8 $16 {was called for.} 35. Qb3+ Ka8 36. Qa3+ Qa7 37. Qxa7+ Kxa7 38. Rxe7+ Kb6) 35. Rxf5 $18 {[%emt 0:01:20] The board is on fire.} (35. exf5 $6 Rgf8 36. Rxf8 Rxf8) 35... e5 {[%emt 0:01:03]} 36. Rf3 {[%emt 0:00:09]} (36. Rxh5 Rg7 37. Qb3+ Ka8) 36... Rg7 $2 {[%emt 0:00:54]} (36... Qc5 37. Rcf1 Rg1 38. Rxg1 (38. Rb3+ Kc7 $18) 38... Qxg1+ 39. Kb2 Qd4+ 40. Qxd4 exd4) 37. Rb3+ {[%emt 0:00:28]} Kc8 {[%emt 0:00:01]} 38. Qa6+ $2 {[%emt 0:00:36]} (38. Rf1) 38... Kd7 {[%emt 0:00:05]} 39. Qe2 {[%emt 0:02:43]} ({Resist} 39. Rb7 $6 Rb8 40. Rb3 (40. Qb5+ Kc8 $11) 40... Ke7 $16) 39... Rg4 {[%emt 0:00:34]} 40. Rf1 {[%emt 0:00:08] Prevents Rf8.} Ke6 {[%emt 0:00:41] Against Rf7} (40... Ke7 41. Rf5 Qc5) 41. Qd2 {[%emt 0:30:38] Threatening mate with Qd5+.} Rf4 {[%emt 0:31:44]} 42. Rxf4 {[%emt 0:00:46]} exf4 {[%emt 0:00:02]} 43. Qxf4 {[%emt 0:00:18] White threatens Qf5+ and mate.} Rg8 $2 {[%emt 0:00:59]} (43... Qf7 $18 44. Qe3 Qf1+ 45. Kb2 Qf6+ 46. c3 Qg6) 44. Qh6+ {[%emt 0:00:22] Weighted Error Value: White=0.41/Black=0.54} 1-0

[Event "101st Irish Championship 2022"]
[Site "Dublin"]
[Date "2022.07.05"]
[Round "2.12"]
[White "Fox, Anthony"]
[Black "Liu, Jason"]
[Result "1-0"]
[ECO "A05"]
[WhiteElo "1945"]
[BlackElo "1746"]
[Annotator "TA"]
[PlyCount "59"]
[EventDate "2022.07.05"]
[EventType "swiss"]
[EventCountry "IRL"]
[SourceTitle "playchess.com"]
[Source "ChessBase"]
[SourceQuality "1"]
[TimeControl "40/6300+30:1800+30"]

{[%evp 11,59,13,15,0,0,8,0,-13,-18,-25,1,0,24,-17,46,-52,17,-48,-34,-64,-62,-69,-64,-70,-46,-50,11,0,75,66,54,27,264,127,304,297,445,363,818,822,1041,1029,5918,5237,3135,2884,29988,29989,29992,29993]} 1. e4 {[%emt 0:00:04]} e6 {[%emt 0:00:13]} 2. d3 {[%emt 0:00:21]} b6 {[%emt 0:00:32]} 3. g3 {[%emt 0:00:21]} Bb7 {[%emt 0:00:21]} 4. Bg2 {[%emt 0:00:21]} c5 {[%emt 0:00:53]} 5. Nf3 {[%emt 0:01:11]} Nf6 {[%emt 0:01:45]} 6. O-O {[%emt 0:00:32]} d5 {[%emt 0:00:45]} 7. e5 {[%emt 0:00:43] A05: Réti Opening: 1 Nf3 Nf6.} Nfd7 {[%emt 0:00:15]} 8. Re1 {[%emt 0:01:33]} Be7 {[%emt 0:02:15]} 9. h4 {[%emt 0:01:02] The position is equal.} Nc6 {[%emt 0:01:48]} 10. c3 {[%emt 0:00:15]} Qc7 {[%emt 0:06:13]} 11. Bf4 {[%emt 0:03:50]} h6 {[%emt 0:07:23]} 12. h5 {[%emt 0:00:18]} (12. Na3 $5 {[%cal Ra3b5]}) 12... O-O-O {[%emt 0:07:00] [#]} (12... a6 $11) 13. a3 $146 {[%emt 0:04:56]} (13. d4 $14) ({Predecessor:} 13. g4 g6 14. Bg3 gxh5 15. gxh5 Rhg8 16. Nbd2 Rg7 17. c4 d4 18. Qe2 Rdg8 19. Kh2 {½-½ (38) Heinmets,T (1886)-Baskin,R (2390) Chess.com INT 2020}) 13... Rdg8 {[%emt 0:05:01]} (13... g5 $15 14. hxg6 fxg6) 14. b4 {[%emt 0:04:09]} (14. d4 $1 $11) 14... g5 $1 $15 {[%emt 0:14:46]} 15. hxg6 {[%emt 0:00:30]} fxg6 {[%emt 0:01:49][%cal Bf7g6,Bg6g5][%mdl 32]} 16. d4 {[%emt 0:02:55]} g5 {[%emt 0:03:00]} 17. Be3 {[%emt 0:00:47]} c4 {[%emt 0:03:16]} 18. a4 {[%emt 0:01:32][%cal Oa4a5]} Kb8 {[%emt 0:57:15]} (18... a6 $1 $15) 19. Na3 {[%emt 0:03:22]} Qd8 {[%emt 0:00:00]} (19... a6 $11) 20. a5 $16 {[%emt 0:01:15]} h5 {[%emt 0:00:00]} 21. axb6 {[%emt 1:26:03]} Qxb6 {[%emt 0:00:00]} (21... Nxb6 $11 22. b5 Na5) 22. Nh2 {[%emt 0:00:00]} (22. Nd2 $18 {is more deadly.}) 22... Nd8 $2 {[%emt 0:00:00] [#]} (22... Qd8 $16) 23. Nxc4 $1 $18 {[%emt 0:00:00]} Qc6 {[%emt 0:00:00]} (23... dxc4 $2 24. d5 exd5 25. Bxb6 $18) (23... Qc7 $142 24. Na5 (24. Qa4 dxc4 25. Qxa7+ Kc8 $11) 24... Ba6) 24. Na5 {[%emt 0:00:00]} Qxc3 {[%emt 0:00:00]} (24... Qc7 25. Qe2 Nb6 26. Nxb7 Nxb7) 25. Nxb7 {[%emt 0:00:00]} Nxb7 {[%emt 0:00:00]} 26. Qa4 {[%emt 0:00:00][%csl LRa7,LRd7]} Nb6 {[%emt 0:00:00]} 27. Qxa7+ {[%emt 0:00:00]} Kc7 {[%emt 0:00:00]} 28. Rec1 {[%emt 0:00:00]} Qxc1+ {[%emt 0:00:00]} 29. Rxc1+ {[%emt 0:00:00]} Nc4 {[%emt 0:00:00] [#]} 30. Rxc4+ $1 {[%emt 0:00:00] Weighted Error Value: White=0.25 (precise) /Black=0.82} 1-0

[Event "101st Irish Championship 2022"]
[Site "Dublin"]
[Date "2022.07.05"]
[Round "3.1"]
[White "Kanyamarala, Tarun"]
[Black "Baburin, Alexander"]
[Result "1-0"]
[ECO "D37"]
[WhiteElo "2379"]
[BlackElo "2400"]
[Annotator "TA"]
[PlyCount "49"]
[EventDate "2022.07.05"]
[EventType "swiss"]
[EventCountry "IRL"]
[SourceTitle "playchess.com"]
[Source "ChessBase"]
[SourceQuality "1"]
[TimeControl "40/6300+30:1800+30"]

{[%evp 14,49,14,19,103,85,102,79,73,57,70,72,58,70,82,73,350,253,254,247,249,254,253,254,239,231,857,457,29987,29988,29988,29989,29989,29990,29990,29989,29991,29992]} 1. d4 {[%emt 0:00:03]} d5 {[%emt 0:00:22]} 2. c4 {[%emt 0:00:30]} e6 {[%emt 0:00:30]} 3. Nf3 {[%emt 0:00:30]} Nf6 {[%emt 0:00:30]} 4. Nc3 {[%emt 0:00:30]} Nbd7 {[%emt 0:00:30]} 5. Bf4 {[%emt 0:00:30]} dxc4 {[%emt 0:00:30]} 6. e3 {[%emt 0:00:30]} Nd5 {[%emt 0:00:30]} 7. Bxc4 {[%emt 0:00:30]} Nxf4 {[%emt 0:00:30]} 8. exf4 {[%emt 0:00:30][%cal Of4f5]} Nf6 {[%emt 0:00:30] [#] D37: Queen's Gambit Declined: 5 Bf4.} (8... Nb6 $11 {remains equal.}) 9. f5 $146 {[%emt 0:00:30]} ({Predecessor:} 9. O-O Be7 10. f5 exf5 11. Qb3 O-O 12. Ng5 b5 13. Nxb5 Rb8 14. Nxf7 Rxf7 15. Bxf7+ Kf8 16. a4 {1-0 (46) Guichard,P (2413)-Atalik,E (2433) Krasnaya Polyana 2021}) 9... exf5 {[%emt 0:00:30]} 10. Qb3 {[%emt 0:00:30]} Bd6 {[%emt 0:00:30] White is better.} 11. Bxf7+ {[%emt 0:00:30]} Kf8 {[%emt 0:00:30]} 12. O-O {[%emt 0:00:30]} g6 {[%emt 0:00:30]} 13. Ne5 {[%emt 0:00:30][%cal Of7g6] Threatens to win with Bxg6!} Qe7 {[%emt 0:00:30]} 14. Rfe1 {[%emt 0:00:30][%cal Oe5g6,Bf1e1,Be1e5,Be5e7,Be7e8,Be8h8][%mdl 32] And now Nxg6+! would win. White is much more active. The black rooks are badly placed.} Bxe5 {[%emt 0:00:30][%mdl 8192] This costs Black the game.} (14... Kg7 $16) 15. Rxe5 {[%emt 0:00:30]} Qxf7 {[%emt 0:00:30] [#]} 16. Qb4+ {[%emt 0:00:30]} Kg8 {[%emt 0:00:30][%cal Oa7a5] ...a5! is the strong threat.} 17. Re7 {[%emt 0:00:30][%mdl 1024] White has strong compensation.} a5 {[%emt 0:00:30]} 18. Qc5 {[%emt 0:00:30] Black must now prevent Rae1.} Nd7 {[%emt 0:00:30]} 19. Qa3 $40 {[%emt 0:00:30][%mdl 128] White is out for blood.} Qf6 $2 {[%emt 0:00:30]} (19... Qc4) 20. Rae1 {[%emt 0:00:30] Nd5 would kill now.} c6 {[%emt 0:00:30] Prevents Nd5.} (20... Nb6 $18 21. Qb3+ Kf8) 21. Qb3+ {[%emt 0:00:30] White mates.} Kf8 {[%emt 0:00:30]} 22. Re8+ {[%emt 0:00:30]} Kg7 {[%emt 0:00:30] [#]} 23. R1e7+ $1 {[%emt 0:00:30]} (23. Rxh8 Kxh8 24. Re8+ Nf8 $17) 23... Kh6 {[%emt 0:00:30] [#]} 24. Nd5 $1 {[%emt 0:00:30][%mdl 512]} Qxd4 {[%emt 0:00:30]} (24... Qg5 25. f4) 25. Rxh8 {[%emt 0:00:30] Weighted Error Value: White=0.26 (precise) /Black=0.72} 1-0